lending/lending_fUSD_20241025
["ID","MTS","AMOUNT","RATE_DAILY","PERIOD"]
[340805544,1729860633535,-500.0,0.00052054,120]
[340805545,1729860633545,-500.0,0.00052054,120]
[340805546,1729860633555,-500.0,0.00052054,120]
[340805547,1729860633565,-500.0,0.00052054,120]
[340805548,1729860633576,-500.0,0.00052054,120]
[340805549,1729860633586,-156.32052,0.00052054,120]
[340805550,1729860633596,-500.0,0.00052054,120]
[340805551,1729860633605,-500.0,0.00052054,120]
[340805552,1729860633615,-500.0,0.00052054,2]
[340805553,1729860633626,-1032.67,0.00052054,120]
[340805554,1729860633636,-500.0,0.00052054,120]
[340805555,1729860633646,-500.0,0.00052054,120]
[340805556,1729860633655,-500.0,0.00052054,120]
[340805557,1729860633665,-776.3,0.00052054,120]
[340805558,1729860633675,-500.0,0.00052054,120]
[340805559,1729860633685,-1392.95,0.00052054,120]
[340805560,1729860633695,-500.0,0.00052054,120]
[340805561,1729860633705,-500.0,0.00052054,120]
[340805562,1729860633715,-500.0,0.00052054,120]
[340805563,1729860633724,-500.0,0.00052054,120]
[340805564,1729860633734,-151.0,0.00052054,120]
[340805565,1729860633743,-649.18417206,0.00052054,120]
[340805566,1729860633753,-179.649571,0.00052054,120]
[340805567,1729860633763,-500.0,0.00052054,120]
[340805568,1729860633773,-500.0,0.00052054,55]
[340805569,1729860633782,-500.0,0.00052054,120]
[340805570,1729860633792,-274.33013499,0.00052054,120]
[340805571,1729860633802,-153.130317,0.00052054,60]
[340805572,1729860633944,-154.997163,0.00052054,120]
[340805573,1729860633955,-566.91,0.00052054,120]
[340805574,1729860633964,-5830.96,0.00052054,120]
[340805575,1729860633974,-500.0,0.00052054,120]
[340805576,1729860633983,-268.44708,0.00052054,120]
[340805577,1729860633993,-515.61,0.00052054,120]
[340805578,1729860634002,-500.0,0.00052054,120]
[340805579,1729860634012,-268.44708,0.00052054,120]
[340805580,1729860634022,-268.44708,0.00052054,120]
[340805581,1729860634031,-508.73493117,0.00052054,120]
[340805582,1729860634040,-707.84,0.00052054,120]
[340805583,1729860634050,-500.0,0.00052054,120]
[340805584,1729860634060,-500.0,0.00052054,120]
[340805585,1729860634071,-2450.89,0.00052054,120]
[340805586,1729860634081,-500.0,0.00052054,120]
[340805587,1729860634091,-500.0,0.00052054,120]
[340805588,1729860634100,-500.0,0.00052054,120]
[340805589,1729860634110,-439.22153768,0.00052054,120]
[340805590,1729860634119,-500.0,0.00052054,120]
[340805591,1729860634128,-500.0,0.00052054,120]
[340805592,1729860634138,-500.0,0.00052054,120]
[340805593,1729860634147,-500.0,0.00052054,120]
[340805594,1729860634156,-500.0,0.00052054,120]
[340805595,1729860634166,-409.127196,0.00052054,120]
[340805596,1729860634176,-500.0,0.00052054,120]
[340805597,1729860634185,-151.0,0.00052054,120]
[340805598,1729860634194,-409.127196,0.00052054,120]
[340805599,1729860634204,-5244.23,0.00052054,120]
[340805600,1729860634213,-596.90824346,0.00052054,120]
[340805601,1729860634223,-409.127196,0.00052054,120]
[340805602,1729860634232,-500.0,0.00052054,120]
[340805603,1729860634241,-409.127196,0.00052054,120]
[340805604,1729860634250,-1600.32,0.00052054,120]
[340805605,1729860634260,-1010.04,0.00052054,120]
[340805606,1729860634270,-576.60384189,0.00052054,120]
[340805607,1729860634280,-500.0,0.00052054,120]
[340805608,1729860634290,-500.0,0.00052054,120]
[340805609,1729860634300,-13023.03,0.00052054,120]
[340805610,1729860634309,-500.0,0.00052054,120]
[340805611,1729860634318,-500.0,0.00052054,120]
[340805612,1729860634328,-500.0,0.00052054,120]
[340805613,1729860634337,-500.0,0.00052054,120]
[340805614,1729860634346,-436.06946038,0.00052054,120]
[340805615,1729860634355,-25550.89,0.00052054,120]
[340805616,1729860634365,-500.0,0.00052054,120]
[340805617,1729860634374,-500.0,0.00052054,120]
[340805618,1729860634383,-500.0,0.00052054,120]
[340805619,1729860634392,-500.0,0.00052054,120]
[340805620,1729860634401,-550.25797247,0.00052054,120]
[340805621,1729860634411,-493.43251789,0.00052054,120]
[340805622,1729860634420,-151.0,0.00052054,120]
[340805623,1729860634429,-151.0,0.00052054,120]
[340805624,1729860634439,-500.0,0.00052054,120]
[340805625,1729860634448,-543.45179347,0.00052054,120]
[340805626,1729860634458,-553.20461961,0.00052054,120]
[340805627,1729860634468,-500.0,0.00052054,120]
[340805628,1729860634478,-500.0,0.00052054,120]
[340805629,1729860634487,-537.90822298,0.00052054,120]
[340805630,1729860634497,-500.0,0.00052054,120]
[340805631,1729860634506,-336.60866126,0.00052054,120]
[340805632,1729860634516,-2672.49,0.00052054,120]
[340805633,1729860634526,-500.0,0.00052054,120]
[340805634,1729860634536,-500.0,0.00052054,120]
[340805635,1729860634545,-500.0,0.00052054,120]
[340805636,1729860634555,-499.89201726,0.00052054,120]
[340805637,1729860634565,-200.0,0.00052054,7]
[340805638,1729860634577,-500.0,0.00052054,120]
[340805639,1729860634587,-500.0,0.00052054,120]
[340805640,1729860634599,-500.0,0.00052054,120]
[340805641,1729860634611,-500.0,0.00052054,120]
[340805642,1729860634621,-500.0,0.00052054,120]
[340805643,1729860634631,-4244.96,0.00052054,120]
[340805644,1729860634641,-500.0,0.00052054,120]
[340805645,1729860634652,-524.98328878,0.00052054,120]
[340805646,1729860634663,-2025.77,0.00052054,120]
[340805647,1729860634673,-794.06,0.00052054,120]
[340805648,1729860634683,-500.0,0.00052054,120]
[340805649,1729860634694,-500.0,0.00052054,120]
[340805650,1729860634704,-813.9,0.00052054,21]
[340805651,1729860634715,-527.51682084,0.00052054,120]
[340805652,1729860634724,-513.33761246,0.00052054,120]
[340805653,1729860634734,-3775.88,0.00052054,120]
[340805654,1729860634744,-582.01307614,0.00052054,120]
[340805655,1729860634754,-500.0,0.00052054,120]
[340805656,1729860634764,-500.0,0.00052054,120]
[340805657,1729860634773,-884.17,0.00052054,120]
[340805658,1729860634783,-758.19,0.00052054,120]
[340805659,1729860634792,-500.0,0.00052054,120]
[340805660,1729860634801,-448.90469522,0.00052054,120]
[340805661,1729860634811,-500.0,0.00052054,120]
[340805662,1729860634820,-500.0,0.00052054,120]
[340805663,1729860634830,-500.0,0.00052054,120]
[340805664,1729860634842,-500.0,0.00052054,120]
[340805665,1729860634851,-500.0,0.00052054,120]
[340805666,1729860634861,-313.17533712,0.00052054,120]
[340805667,1729860634870,-502.20438373,0.00052054,120]
[340805668,1729860634882,-2669.93,0.00052054,120]
[340805669,1729860634891,-732.75,0.00052054,120]
[340805670,1729860634900,-739.93,0.00052054,120]
[340805671,1729860634909,-616.97976356,0.00052054,120]
[340805672,1729860634920,-858.97,0.00052054,120]
[340805673,1729860634929,-500.0,0.00052054,120]
[340805674,1729860634939,-500.0,0.00052054,120]
[340805675,1729860634948,-663.58,0.00052054,120]
[340805676,1729860634958,-663.58,0.00052054,120]
[340805677,1729860634967,-663.58,0.00052054,120]
[340805678,1729860634977,-500.0,0.00052054,120]
[340805679,1729860634987,-500.0,0.00052054,120]
[340805680,1729860634997,-920.63,0.00052054,120]
[340805681,1729860635006,-151.0,0.00052054,120]
[340805682,1729860635017,-194.737457,0.00052054,120]
[340805683,1729860635026,-578.38,0.00052054,120]
[340805684,1729860635036,-2001.49,0.00052054,120]
[340805685,1729860635046,-500.0,0.00052054,120]
[340805686,1729860635056,-2220.93,0.00052054,120]
[340805687,1729860635066,-500.0,0.00052054,120]
[340805688,1729860635080,-610.05691241,0.00052054,120]
[340805689,1729860635090,-224.28737689,0.00052054,120]
[340805690,1729860635099,-500.0,0.00052054,120]
[340805691,1729860635109,-446.37205995,0.00052054,120]
[340805692,1729860635119,-500.0,0.00052054,120]
[340805693,1729860635129,-551.46140524,0.00052054,120]
[340805694,1729860635138,-500.0,0.00052054,120]
[340805695,1729860635148,-527.99247374,0.00052054,120]
[340805696,1729860635158,-341.10075394,0.00052054,120]
[340805697,1729860635168,-500.0,0.00052054,120]
[340805698,1729860635178,-500.0,0.00052054,120]
[340805699,1729860635188,-2464.34,0.00052054,4]
[340805700,1729860635197,-500.0,0.00052054,120]
[340805701,1729860635207,-500.0,0.00052054,120]
[340805702,1729860635217,-500.0,0.00052054,120]
[340805703,1729860635227,-608.69,0.00052054,120]
[340805704,1729860635239,-548.5384813,0.00052054,120]
[340805705,1729860635249,-512.4798815,0.00052054,120]
[340805706,1729860635258,-500.0,0.00052054,120]
[340805707,1729860635268,-500.0,0.00052054,120]
[340805708,1729860635278,-507.16569793,0.00052054,120]
[340805709,1729860635287,-500.0,0.00052054,120]
[340805710,1729860635297,-637.28859584,0.00052054,120]
[340805711,1729860635307,-500.0,0.00052054,7]
[340805712,1729860635316,-500.0,0.00052054,120]
[340805713,1729860635327,-537.22722615,0.00052054,120]
[340805714,1729860635337,-500.0,0.00052054,120]
[340805715,1729860635346,-500.0,0.00052054,120]
[340805716,1729860635355,-500.0,0.00052054,120]
[340805717,1729860635365,-500.0,0.00052054,120]
[340805718,1729860635374,-1929.39,0.00052054,120]
[340805719,1729860635383,-500.0,0.00052054,120]
[340805720,1729860635393,-182.62766643,0.00052054,120]
[340805721,1729860635403,-500.0,0.00052054,2]
[340805722,1729860635412,-1000.0,0.00052054,120]
[340805723,1729860635422,-1697.67,0.00052054,120]
[340805724,1729860635432,-500.0,0.00052054,120]
[340805725,1729860635442,-500.0,0.00052054,120]
[340805726,1729860635452,-668.28,0.00052054,120]
[340805727,1729860635461,-500.0,0.00052054,120]
[340805728,1729860635471,-500.0,0.00052054,120]
[340805729,1729860635480,-1744.95,0.00052054,120]
[340805730,1729860635490,-151.0,0.00052054,120]
[340805731,1729860635499,-500.0,0.00052054,120]
[340805732,1729860635509,-577.26592224,0.00052054,120]
[340805733,1729860635519,-3060.42,0.00052054,120]
[340805734,1729860635528,-500.0,0.00052054,120]
[340805735,1729860635538,-668.61,0.00052054,120]
[340805736,1729860635548,-540.32621605,0.00052054,120]
[340805737,1729860635557,-172.99756927,0.00052054,120]
[340805738,1729860635566,-506.28884812,0.00052054,120]
[340805739,1729860635576,-4974.01,0.00052054,120]
[340805740,1729860635585,-500.0,0.00052054,120]
[340805741,1729860635595,-500.0,0.00052054,120]
[340805742,1729860635605,-585.07380024,0.00052054,120]
[340805743,1729860635614,-500.0,0.00052054,120]
[340805744,1729860635624,-151.0,0.00052054,120]
[340805745,1729860635633,-500.0,0.00052054,120]
[340805746,1729860635642,-151.0,0.00052054,120]
[340805747,1729860635652,-500.0,0.00052054,120]
[340805748,1729860635661,-151.0,0.00052054,120]
[340805749,1729860635671,-219.647378,0.00052054,120]
[340805750,1729860635680,-427.52140716,0.00052054,120]
[340805751,1729860635689,-500.0,0.00052054,120]
[340805752,1729860635699,-500.0,0.00052054,120]
[340805753,1729860635709,-3126.73,0.00052054,120]
[340805754,1729860635718,-500.0,0.00052054,120]
[340805755,1729860635727,-500.0,0.00052054,120]
[340805756,1729860635737,-500.0,0.00052054,120]
[340805757,1729860635747,-500.0,0.00052054,120]
[340805758,1729860635756,-500.0,0.00052054,120]
[340805759,1729860635766,-500.0,0.00052054,120]
[340805760,1729860635775,-500.0,0.00052054,120]
[340805761,1729860635784,-500.0,0.00052054,120]
[340805762,1729860635794,-620.96658686,0.00052054,120]
[340805763,1729860635803,-454.2025352,0.00052054,120]
[340805764,1729860635812,-648.31783968,0.00052054,120]
[340805765,1729860635822,-500.0,0.00052054,120]
[340805766,1729860635832,-500.0,0.00052054,120]
[340805767,1729860635842,-513.47393682,0.00052054,120]
[340805768,1729860635851,-555.05899326,0.00052054,120]
[340805769,1729860635861,-2488.45,0.00052054,120]
[340805770,1729860635870,-540.62324084,0.00052054,120]
[340805771,1729860635880,-500.0,0.00052057,120]
[340805772,1729860635890,-4333.10629307,0.00052061,11]
[340805773,1729860635899,-558.01,0.00052068,120]
[340805774,1729860635909,-500.0,0.00052068,120]
[340805775,1729860635920,-409.127196,0.00052068,120]
[340805776,1729860635929,-409.127196,0.00052068,120]
[340805777,1729860635939,-151.0,0.00052068,120]
[340805778,1729860635950,-268.44708,0.00052071,120]
[340805779,1729860635960,-268.44708,0.00052071,120]
[340805780,1729860635969,-4333.10629307,0.00052071,11]
[340805781,1729860635979,-150.0,0.00052075,7]
[340805782,1729860635989,-150.0,0.00052076,7]
[340805783,1729860635999,-150.77037065,0.00052078,120]
[340805784,1729860636009,-1485.15133901,0.00052078,120]
[340805785,1729860636019,-200.0,0.00052079,15]
[340805786,1729860636028,-6615.3968985,0.00052081,2]
[340805787,1729860636039,-150.0,0.00052084,7]
[340805788,1729860636049,-171.12,0.00052086,2]
[340805789,1729860636058,-4333.10629307,0.0005209,11]
[340805790,1729860636068,-1890.40919381,0.000521,2]
[340805791,1729860636078,-12500.0,0.000521,120]
[340805792,1729860636088,-150.0,0.00052106,7]
[340805793,1729860636098,-150.0,0.00052125,7]
[340805794,1729860636108,-150.0,0.00052149,7]
[340805795,1729860636118,-150.0,0.00052153,7]
[340805796,1729860636128,-417.57016998,0.00052163,120]
[340805797,1729860636138,-150.0,0.00052174,7]
[340805798,1729860636148,-25998.6377584,0.00052189,11]
[340805799,1729860636158,-4333.10629307,0.0005219,11]
[340805800,1729860636168,-150.0,0.00052191,7]
[340805801,1729860636177,-150.0,0.00052197,7]
[340805802,1729860636187,-150.0,0.00052197,7]
[340805803,1729860636197,-268.44708,0.00052199,120]
[340805804,1729860636207,-268.44708,0.00052199,120]
[340805805,1729860636217,-409.127196,0.00052199,120]
[340805806,1729860636226,-409.127196,0.00052199,120]
[340805807,1729860636238,-151.0,0.00052199,120]
[340805808,1729860636247,-151.0,0.00052199,120]
[340805809,1729860636374,-47197.12,0.00052199,120]
[340805810,1729860636384,-416.0,0.000522,41]
[340805811,1729860636394,-12500.0,0.000522,120]
[340805812,1729860636403,-150.0,0.00052204,7]
[340805813,1729860636412,-150.0,0.00052205,7]
[340805814,1729860636422,-4333.10629307,0.00052208,11]
[340805815,1729860636431,-150.0,0.00052211,7]
[340805816,1729860636441,-150.0,0.00052212,7]
[340805817,1729860636450,-171.348901,0.00052218,47]
[340805818,1729860636460,-7500.0,0.00052218,120]
[340805819,1729860636469,-500.0,0.00052233,120]
[340805820,1729860636479,-8666.21258614,0.0005229,11]
[340805821,1729860636488,-150.0,0.00052292,7]
[340805822,1729860636498,-12500.0,0.000523,120]
[340805823,1729860636507,-150.0,0.00052302,7]
[340805824,1729860636517,-153.0,0.00052307,7]
[340805825,1729860636527,-8666.21258614,0.00052308,11]
[340805826,1729860636536,-663.58,0.00052317,120]
[340805827,1729860636546,-14249.52123265,0.00052318,30]
[340805828,1729860636555,-8666.21258614,0.00052318,11]
[340805829,1729860636565,-663.58,0.00052327,120]
[340805830,1729860636575,-2000.0,0.00052327,120]
[340805831,1729860636585,-2000.0,0.00052327,120]
[340805832,1729860636595,-2000.0,0.00052327,120]
[340805833,1729860636604,-2000.0,0.00052327,120]
[340805834,1729860636613,-1657.08748506,0.00052327,120]
[340805835,1729860636622,-109626.64740694,0.00052328,62]
[340805836,1729860636632,-3757.08515245,0.00052328,70]
[340805837,1729860636642,-527.14,0.00052328,120]
[340805838,1729860636651,-1217.1,0.00052328,120]
[340805839,1729860636661,-632.76816467,0.00052328,120]
[340805840,1729860636670,-500.0,0.00052328,120]
[340805841,1729860636680,-508.69339412,0.00052328,120]
[340805842,1729860636689,-500.0,0.00052328,120]
[340805843,1729860636699,-500.0,0.00052328,120]
[340805844,1729860636708,-500.0,0.00052328,120]
[340805845,1729860636718,-500.0,0.00052328,120]
[340805846,1729860636727,-500.0,0.00052328,120]
[340805847,1729860636736,-500.0,0.00052328,120]
[340805848,1729860636746,-500.0,0.00052328,120]
[340805849,1729860636755,-162.46270693,0.00052328,120]
[340805850,1729860636764,-500.0,0.00052328,2]
[340805851,1729860636773,-20000.0,0.00052328,2]
[340805852,1729860636782,-1825.89,0.00052328,120]
[340805853,1729860636791,-408.82932238,0.00052328,120]
[340805854,1729860636800,-500.0,0.00052328,120]
[340805855,1729860636809,-635.1200674,0.00052328,120]
[340805856,1729860636818,-1388.39,0.00052328,120]
[340805857,1729860636829,-500.0,0.00052328,120]
[340805858,1729860636841,-500.0,0.00052328,120]
[340805859,1729860636850,-678.01,0.00052328,120]
[340805860,1729860636860,-500.0,0.00052328,60]
[340805861,1729860636869,-150.0,0.00052328,120]
[340805862,1729860636878,-526.32,0.00052328,120]
[340805863,1729860636887,-914.76,0.00052328,120]
[340805864,1729860636896,-500.0,0.00052328,120]
[340805865,1729860636905,-771.04,0.00052328,7]
[340805866,1729860636914,-359.93656521,0.00052328,5]
[340805867,1729860636923,-500.0,0.00052328,120]
[340805868,1729860636933,-915.91,0.00052328,120]
[340805869,1729860636942,-500.0,0.00052328,14]
[340805870,1729860636952,-500.0,0.00052328,120]
[340805871,1729860636961,-500.0,0.00052328,120]
[340805872,1729860636971,-500.0,0.00052328,120]
[340805873,1729860636981,-910.98,0.00052328,120]
[340805874,1729860636990,-500.0,0.00052328,120]
[340805875,1729860636999,-500.0,0.00052328,120]
[340805876,1729860637009,-500.0,0.00052328,120]
[340805877,1729860637018,-500.0,0.00052328,120]
[340805878,1729860637027,-500.0,0.00052328,120]
[340805879,1729860637037,-500.0,0.00052328,120]
[340805880,1729860637046,-500.0,0.00052328,2]
[340805881,1729860637056,-1032.67,0.00052328,120]
[340805882,1729860637066,-500.0,0.00052328,120]
[340805883,1729860637075,-500.0,0.00052328,120]
[340805884,1729860637085,-500.0,0.00052328,120]
[340805885,1729860637094,-776.3,0.00052328,120]
[340805886,1729860637104,-1392.95,0.00052328,120]
[340805887,1729860637114,-500.0,0.00052328,120]
[340805888,1729860637123,-181.17,0.00052328,120]
[340805889,1729860637133,-500.0,0.00052328,120]
[340805890,1729860637143,-500.0,0.00052328,120]
[340805891,1729860637153,-500.0,0.00052328,120]
[340805892,1729860637162,-500.0,0.00052328,55]
[340805893,1729860637172,-500.0,0.00052328,120]
[340805894,1729860637182,-566.91,0.00052328,120]
[340805895,1729860637192,-5830.96,0.00052328,120]
[340805896,1729860637202,-500.0,0.00052328,120]
[340805897,1729860637211,-515.61,0.00052328,120]
[340805898,1729860637221,-500.0,0.00052328,120]
[340805899,1729860637230,-268.44708,0.00052328,120]
[340805900,1729860637239,-268.44708,0.00052328,120]
[340805901,1729860637249,-268.44708,0.00052328,120]
[340805902,1729860637259,-268.44708,0.00052328,120]
[340805903,1729860637269,-707.84,0.00052328,120]
[340805904,1729860637279,-2450.89,0.00052328,120]
[340805905,1729860637288,-627.20789866,0.00052328,120]
[340805906,1729860637297,-343.46344808,0.00052328,120]
[340805907,1729860637307,-500.0,0.00052328,120]
[340805908,1729860637316,-500.0,0.00052328,120]
[340805909,1729860637326,-500.0,0.00052328,120]
[340805910,1729860637336,-500.0,0.00052328,120]
[340805911,1729860637346,-5244.23,0.00052328,120]
[340805912,1729860637356,-409.127196,0.00052328,120]
[340805913,1729860637366,-409.127196,0.00052328,120]
[340805914,1729860637376,-500.0,0.00052328,120]
[340805915,1729860637385,-409.127196,0.00052328,120]
[340805916,1729860637394,-409.127196,0.00052328,120]
[340805917,1729860637403,-1600.32,0.00052328,120]
[340805918,1729860637412,-1010.04,0.00052328,120]
[340805919,1729860637422,-151.44919011,0.00052328,120]
[340805920,1729860637432,-500.0,0.00052328,120]
[340805921,1729860637441,-13023.03,0.00052328,120]
[340805922,1729860637450,-500.0,0.00052328,120]
[340805923,1729860637459,-500.0,0.00052328,120]
[340805924,1729860637469,-500.0,0.00052328,120]
[340805925,1729860637478,-25550.89,0.00052328,120]
[340805926,1729860637487,-500.0,0.00052328,120]
[340805927,1729860637496,-500.0,0.00052328,120]
[340805928,1729860637505,-302.75531439,0.00052328,120]
[340805929,1729860637515,-178.21242534,0.00052328,120]
[340805930,1729860637524,-151.0,0.00052328,120]
[340805931,1729860637533,-187.221231,0.00052328,120]
[340805932,1729860637543,-500.0,0.00052328,120]
[340805933,1729860637552,-500.0,0.00052328,120]
[340805934,1729860637561,-500.0,0.00052328,120]
[340805935,1729860637570,-2672.49,0.00052328,120]
[340805936,1729860637580,-500.0,0.00052328,120]
[340805937,1729860637589,-570.89769842,0.00052328,120]
[340805938,1729860637599,-500.0,0.00052328,120]
[340805939,1729860637608,-200.0,0.00052328,7]
[340805940,1729860637617,-500.0,0.00052328,120]
[340805941,1729860637626,-500.0,0.00052328,120]
[340805942,1729860637635,-500.0,0.00052328,120]
[340805943,1729860637645,-500.0,0.00052328,120]
[340805944,1729860637654,-500.0,0.00052328,120]
[340805946,1729860637663,-500.0,0.00052328,120]
[340805947,1729860637672,-2025.77,0.00052328,120]
[340805948,1729860637681,-794.06,0.00052328,120]
[340805949,1729860637691,-500.0,0.00052328,120]
[340805950,1729860637701,-500.0,0.00052328,120]
[340805951,1729860637710,-813.9,0.00052328,21]
[340805952,1729860637719,-3775.88,0.00052328,120]
[340805953,1729860637728,-630.47817668,0.00052328,120]
[340805954,1729860637737,-500.0,0.00052328,120]
[340805955,1729860637747,-884.17,0.00052328,120]
[340805956,1729860637756,-758.19,0.00052328,120]
[340805957,1729860637765,-216.04355436,0.00052328,120]
[340805958,1729860637774,-500.0,0.00052328,120]
[340805959,1729860637783,-500.0,0.00052328,120]
[340805960,1729860637792,-500.0,0.00052328,120]
[340805961,1729860637801,-500.0,0.00052328,120]
[340805962,1729860637810,-500.0,0.00052328,120]
[340805963,1729860637820,-2669.93,0.00052328,120]
[340805964,1729860637829,-732.75,0.00052328,120]
[340805965,1729860637842,-739.93,0.00052328,120]
[340805966,1729860637851,-858.97,0.00052328,120]
[340805967,1729860637861,-500.0,0.00052328,120]
[340805968,1729860637869,-500.0,0.00052328,120]
[340805969,1729860637878,-500.0,0.00052328,120]
[340805970,1729860637889,-920.63,0.00052328,120]
[340805971,1729860637898,-578.38,0.00052328,120]
[340805973,1729860637908,-2001.49,0.00052328,120]
[340805975,1729860637918,-500.0,0.00052328,120]
[340805976,1729860637927,-2220.93,0.00052328,120]
[340805977,1729860637936,-538.60510946,0.00052328,120]
[340805978,1729860637945,-500.0,0.00052328,120]
[340805979,1729860637954,-500.0,0.00052328,120]
[340805980,1729860637963,-500.0,0.00052328,120]
[340805981,1729860637973,-2464.34,0.00052328,4]
[340805982,1729860637982,-500.0,0.00052328,120]
[340805983,1729860637992,-500.0,0.00052328,120]
[340805984,1729860638001,-500.0,0.00052328,120]
[340805985,1729860638011,-608.69,0.00052328,120]
[340805986,1729860638021,-500.0,0.00052328,120]
[340805987,1729860638030,-500.0,0.00052328,120]
[340805988,1729860638040,-500.0,0.00052328,120]
[340805989,1729860638050,-500.0,0.00052328,7]
[340805990,1729860638059,-500.0,0.00052328,120]
[340805991,1729860638069,-500.0,0.00052328,120]
[340805992,1729860638079,-500.0,0.00052328,120]
[340805993,1729860638089,-500.0,0.00052328,120]
[340805994,1729860638098,-1929.39,0.00052328,120]
[340805995,1729860638108,-599.76014849,0.00052328,120]
[340805996,1729860638118,-500.0,0.00052328,2]
[340805997,1729860638127,-1000.0,0.00052328,120]
[340805998,1729860638137,-1697.67,0.00052328,120]
[340805999,1729860638147,-329.22943655,0.00052328,120]
[340806000,1729860638156,-500.0,0.00052328,120]
[340806001,1729860638166,-668.28,0.00052328,120]
[340806002,1729860638176,-500.0,0.00052328,120]
[340806003,1729860638185,-500.0,0.00052328,120]
[340806004,1729860638195,-1744.95,0.00052328,120]
[340806005,1729860638205,-500.0,0.00052328,120]
[340806006,1729860638217,-3060.42,0.00052328,120]
[340806007,1729860638227,-668.61,0.00052328,120]
[340806008,1729860638237,-4974.01,0.00052328,120]
[340806009,1729860638247,-500.0,0.00052328,120]
[340806010,1729860638258,-500.0,0.00052328,120]
[340806011,1729860638267,-500.0,0.00052328,120]
[340806012,1729860638277,-500.0,0.00052328,120]
[340806013,1729860638286,-151.0,0.00052328,120]
[340806014,1729860638296,-151.0,0.00052328,120]
[340806015,1729860638306,-500.0,0.00052328,120]
[340806016,1729860638317,-530.2137137,0.00052328,120]
[340806017,1729860638326,-3126.73,0.00052328,120]
[340806018,1729860638337,-502.87133579,0.00052328,120]
[340806019,1729860638346,-500.0,0.00052328,120]
[340806020,1729860638356,-500.0,0.00052328,120]
[340806021,1729860638366,-500.0,0.00052328,120]
[340806022,1729860638377,-500.0,0.00052328,120]
[340806023,1729860638386,-500.0,0.00052328,120]
[340806024,1729860638395,-500.0,0.00052328,120]
[340806025,1729860638405,-500.0,0.00052328,120]
[340806026,1729860638414,-500.0,0.00052328,120]
[340806027,1729860638424,-2488.45,0.00052328,120]
[340806028,1729860638434,-500.0,0.00052341,120]
[340806034,1729860638547,-558.01,0.00052342,120]
[340806035,1729860638558,-5117.2049555,0.00052344,2]
[340806036,1729860638568,-478.1227893,0.00052354,2]
[340806037,1729860638579,-6338.08,0.00052377,2]
[340806038,1729860638589,-12500.0,0.000524,120]
[340806039,1729860638599,-150.0,0.000524,40]
[340806040,1729860638608,-417.57017,0.00052431,120]
[340806041,1729860638618,-5429.2683528,0.00052464,2]
[340806042,1729860638628,-478.1227893,0.00052464,2]
[340806043,1729860638638,-4201.4469687,0.00052464,2]
[340806044,1729860638648,-150.0,0.0005247,120]
[340806045,1729860638658,-1151.0,0.0005247,120]
[340806046,1729860638668,-285.663,0.0005247,120]
[340806047,1729860638678,-150.782,0.0005247,120]
[340806048,1729860638687,-150.0,0.0005247,120]
[340806049,1729860638697,-164.0,0.0005247,2]
[340806050,1729860638707,-165.805,0.0005247,120]
[340806051,1729860638716,-200.0,0.0005247,120]